[Event "Championnat d'Europe de Blitz"]
[Date "2024.12.09"]
[White "Janik, Igor"]
[Black "Nikolovski, Nikola"]
[WhiteElo "2515"]
[BlackElo "2407"]
[Round "6.21"]
[Result "0-1"]
[TimeControl "180+2"]

1. e4 {[%emt 00:00:02] [%clk 00:03:02]} d5 {[%emt 00:00:02] [%clk 00:03:03]} 2.
Nc3 {[%emt 00:00:04] [%clk 00:02:59]} d4 {[%emt 00:00:02] [%clk 00:03:04]} 3.
Nce2 {[%emt 00:00:02] [%clk 00:03:00]} e5 {[%emt 00:00:01] [%clk 00:03:04]} 4.
Ng3 {[%clk 00:03:00]} Be6 {[%clk 00:03:06]} 5. b3 {[%emt 00:00:08] [%clk
00:02:55]} Nd7 {[%emt 00:00:19] [%clk 00:02:49]} 6. h4 {[%emt 00:00:28] [%clk
00:02:28]} h5 {[%emt 00:00:23] [%clk 00:02:28]} 7. Nf3 {[%emt 00:00:20] [%clk
00:02:10]} f6 {[%emt 00:00:03] [%clk 00:02:27]} 8. Be2 {[%emt 00:00:19] [%clk
00:01:53]} g6 {[%emt 00:00:16] [%clk 00:02:14]} 9. O-O {[%emt 00:00:04] [%clk
00:01:50]} Ne7 {[%emt 00:00:06] [%clk 00:02:10]} 10. Bc4 {[%emt 00:00:03] [%clk
00:01:49]} Bg4 {[%emt 00:00:48] [%clk 00:01:24]} 11. Be2 {[%emt 00:00:01] [%clk
00:01:50]} Nc5 {[%emt 00:00:05] [%clk 00:01:21]} 12. Ne1 {[%emt 00:00:01] [%clk
00:01:50]} Bxe2 {[%emt 00:00:16] [%clk 00:01:08]} 13. Qxe2 {[%emt 00:00:02]
[%clk 00:01:50]} Nc6 {[%emt 00:00:26] [%clk 00:00:44]} 14. d3 {[%emt 00:00:10]
[%clk 00:01:43]} Ne6 {[%emt 00:00:06] [%clk 00:00:40]} 15. Nh1 {[%emt 00:00:19]
[%clk 00:01:25]} Bh6 {[%emt 00:00:09] [%clk 00:00:33]} 16. Bxh6 {[%emt 00:00:04]
[%clk 00:01:23]} Rxh6 {[%clk 00:00:34]} 17. g3 {[%emt 00:00:01] [%clk 00:01:24]}
Qd6 {[%emt 00:00:04] [%clk 00:00:31]} 18. Ng2 {[%emt 00:00:02] [%clk 00:01:24]}
g5 {[%emt 00:00:12] [%clk 00:00:21]} 19. Qd2 {[%emt 00:00:27] [%clk 00:01:00]}
O-O-O {[%emt 00:00:02] [%clk 00:00:22]} 20. a3 {[%emt 00:00:18] [%clk 00:00:44]}
Rg8 {[%emt 00:00:02] [%clk 00:00:21]} 21. b4 {[%clk 00:00:46]} Ne7 {[%clk
00:00:22]} 22. b5 {[%emt 00:00:02] [%clk 00:00:46]} Ng6 {[%emt 00:00:06] [%clk
00:00:18]} 23. hxg5 {[%clk 00:00:47]} fxg5 {[%emt 00:00:02] [%clk 00:00:19]} 24.
a4 {[%emt 00:00:11] [%clk 00:00:37]} Rgh8 {[%clk 00:00:20]} 25. b6 {[%emt
00:00:10] [%clk 00:00:29]} cxb6 {[%emt 00:00:06] [%clk 00:00:16]} 26. a5 {[%clk
00:00:31]} b5 {[%clk 00:00:17]} 27. a6 {[%clk 00:00:32]} b6 {[%emt 00:00:02]
[%clk 00:00:17]} 28. Rab1 {[%emt 00:00:04] [%clk 00:00:30]} h4 {[%emt 00:00:02]
[%clk 00:00:17]} 29. Rxb5 {[%emt 00:00:07] [%clk 00:00:26]} Qd7 {[%emt 00:00:05]
[%clk 00:00:13]} 30. Rd5 {[%emt 00:00:01] [%clk 00:00:26]} Qh7 {[%emt 00:00:03]
[%clk 00:00:12]} 31. g4 {[%emt 00:00:19] [%clk 00:00:09]} h3 {[%emt 00:00:01]
[%clk 00:00:14]} 32. Ne1 {[%clk 00:00:11]} h2+ {[%clk 00:00:15]} 33. Kg2 {[%clk
00:00:12]} Rh3 {[%emt 00:00:01] [%clk 00:00:16]} 34. f3 {[%emt 00:00:03] [%clk
00:00:12]} Nef4+ {[%emt 00:00:09] [%clk 00:00:08]} 35. Kf2 {[%emt 00:00:01]
[%clk 00:00:13]} Nxd5 {[%emt 00:00:02] [%clk 00:00:09]} 36. exd5 {[%clk
00:00:14]} Qf7 {[%emt 00:00:02] [%clk 00:00:09]} 37. Qxg5 {[%emt 00:00:06] [%clk
00:00:10]} Nf4 {[%emt 00:00:03] [%clk 00:00:08]} 38. Qxe5 {[%emt 00:00:02] [%clk
00:00:10]} R3h6 {[%emt 00:00:05] [%clk 00:00:05]} 39. Qxd4 {[%emt 00:00:02]
[%clk 00:00:10]} Re8 {[%clk 00:00:06]} 40. Ng3 {[%emt 00:00:03] [%clk 00:00:09]}
Rh3 {[%emt 00:00:03] [%clk 00:00:05]} 41. Rh1 {[%emt 00:00:02] [%clk 00:00:09]}
Qe7 {[%emt 00:00:04] [%clk 00:00:03]} 42. Ne4 {[%clk 00:00:10]} Kb8 {[%emt
00:00:02] [%clk 00:00:03]} 43. Ke3 {[%emt 00:00:06] [%clk 00:00:06]} Ng6 {[%emt
00:00:01] [%clk 00:00:04]} 44. Kd2 {[%emt 00:00:01] [%clk 00:00:08]} Ne5 {[%emt
00:00:01] [%clk 00:00:05]} 45. Kc1 {[%clk 00:00:08]} Nf7 {[%emt 00:00:03] [%clk
00:00:04]} 46. d6 {[%emt 00:00:01] [%clk 00:00:09]} Qd7 {[%emt 00:00:01] [%clk
00:00:05]} 47. Nf6 {[%emt 00:00:05] [%clk 00:00:06]} Rxe1+ {[%emt 00:00:03]
[%clk 00:00:04]} 48. Rxe1 {[%emt 00:00:01] [%clk 00:00:07]} Qd8 {[%emt 00:00:02]
[%clk 00:00:05]} 49. Qd5 {[%emt 00:00:05] [%clk 00:00:04]} Nxd6 {[%emt 00:00:02]
[%clk 00:00:05]} 50. Rh1 {[%emt 00:00:02] [%clk 00:00:04]} Qe7 {[%emt 00:00:02]
[%clk 00:00:05]} 51. Ne4 {[%emt 00:00:02] [%clk 00:00:04]} Nf7 {[%emt 00:00:02]
[%clk 00:00:04]} 52. Kb1 {[%emt 00:00:02] [%clk 00:00:04]} Ne5 {[%emt 00:00:02]
[%clk 00:00:05]} 53. f4 {[%emt 00:00:01] [%clk 00:00:05]} Nxg4 {[%emt 00:00:01]
[%clk 00:00:05]} 54. f5 {[%emt 00:00:02] [%clk 00:00:06]} Ne3 {[%clk 00:00:06]}
55. Qc6 {[%emt 00:00:03] [%clk 00:00:05]} Nxf5 {[%emt 00:00:02] [%clk 00:00:06]}
56. Ka2 {[%emt 00:00:02] [%clk 00:00:05]} Nd4 {[%clk 00:00:07]} 57. Qd5 {[%emt
00:00:01] [%clk 00:00:06]} Qe6 {[%emt 00:00:01] [%clk 00:00:08]} 58. Qxe6 {[%emt
00:00:02] [%clk 00:00:07]} Nxe6 {[%emt 00:00:01] [%clk 00:00:09]} 59. Nf2 {[%clk
00:00:08]} Rh4 {[%emt 00:00:03] [%clk 00:00:08]} 60. Nd1 {[%emt 00:00:04] [%clk
00:00:06]} Nd4 {[%emt 00:00:04] [%clk 00:00:06]} 61. Ne3 {[%clk 00:00:07]} Nf3
{[%emt 00:00:03] [%clk 00:00:05]} 62. Kb3 {[%emt 00:00:03] [%clk 00:00:06]} Rh3
{[%emt 00:00:04] [%clk 00:00:04]} 63. Kc3 {[%emt 00:00:02] [%clk 00:00:05]} Kc7
{[%clk 00:00:05]} 64. Nd5+ {[%emt 00:00:03] [%clk 00:00:04]} Kc6 {[%emt
00:00:02] [%clk 00:00:05]} 65. Nf6 {[%emt 00:00:02] [%clk 00:00:05]} Rh4 {[%emt
00:00:02] [%clk 00:00:04]} 66. Ne4 {[%emt 00:00:02] [%clk 00:00:05]} Ne5 {[%emt
00:00:03] [%clk 00:00:03]} 67. Ng3 {[%emt 00:00:02] [%clk 00:00:05]} Nf3 {[%emt
00:00:01] [%clk 00:00:04]} 68. Nf5 {[%emt 00:00:01] [%clk 00:00:06]} Rh5 {[%emt
00:00:02] [%clk 00:00:04]} 69. Ng3 {[%clk 00:00:07]} Rh3 {[%emt 00:00:01] [%clk
00:00:04]} 70. Ne2 {[%emt 00:00:02] [%clk 00:00:08]} Kb5 {[%emt 00:00:01] [%clk
00:00:05]} 71. d4 {[%emt 00:00:04] [%clk 00:00:07]} Ng1+ {[%emt 00:00:03] [%clk
00:00:04]} 72. Kd2 {[%clk 00:00:08]} Nxe2 {[%emt 00:00:02] [%clk 00:00:04]} 73.
Kxe2 {[%clk 00:00:10]} Kxa6 {[%emt 00:00:01] [%clk 00:00:05]} 74. Kf2 {[%clk
00:00:11]} Kb5 {[%clk 00:00:06]} 75. Kg2 {[%clk 00:00:13]} Rh5 {[%emt 00:00:01]
[%clk 00:00:07]} 76. Rxh2 {[%emt 00:00:02] [%clk 00:00:12]} Rxh2+ {[%emt
00:00:01] [%clk 00:00:08]} 0-1

[Site "Europe Echecs"]

[Event "Championnat d'Europe de Blitz"]
[Date "2024.12.09"]
[White "Herega, Nejc"]
[Black "Dvirnyy, Danyyil"]
[WhiteElo "2249"]
[BlackElo "2491"]
[Round "6.22"]
[Result "1/2-1/2"]
[TimeControl "180+2"]

1. Nf3 {[%clk 00:03:02]} Nf6 {[%emt 00:00:03] [%clk 00:03:01]} 2. d4 {[%emt
00:00:02] [%clk 00:03:03]} e6 {[%emt 00:00:01] [%clk 00:03:02]} 3. Bf4 {[%emt
00:00:02] [%clk 00:03:03]} h6 {[%emt 00:00:09] [%clk 00:02:55]} 4. h3 {[%emt
00:00:02] [%clk 00:03:03]} d5 {[%emt 00:00:02] [%clk 00:02:55]} 5. e3 {[%emt
00:00:05] [%clk 00:03:00]} Bd6 {[%emt 00:00:02] [%clk 00:02:56]} 6. Nbd2 {[%emt
00:00:17] [%clk 00:02:44]} c5 {[%emt 00:00:21] [%clk 00:02:37]} 7. c3 {[%clk
00:02:45]} Nc6 {[%emt 00:00:02] [%clk 00:02:37]} 8. Bd3 {[%emt 00:00:16] [%clk
00:02:31]} O-O {[%emt 00:00:18] [%clk 00:02:21]} 9. Bxd6 {[%emt 00:00:16] [%clk
00:02:17]} Qxd6 {[%emt 00:00:02] [%clk 00:02:18]} 10. dxc5 {[%emt 00:00:05]
[%clk 00:02:17]} Qxc5 {[%emt 00:00:01] [%clk 00:02:19]} 11. O-O {[%emt 00:00:02]
[%clk 00:02:17]} e5 {[%emt 00:00:07] [%clk 00:02:14]} 12. e4 {[%emt 00:00:02]
[%clk 00:02:16]} Be6 {[%emt 00:00:11] [%clk 00:02:06]} 13. Qc2 {[%emt 00:00:04]
[%clk 00:02:14]} Rac8 {[%emt 00:00:07] [%clk 00:02:01]} 14. Rac1 {[%emt
00:00:13] [%clk 00:02:03]} Qb6 {[%emt 00:00:11] [%clk 00:01:51]} 15. Qb1 {[%emt
00:00:38] [%clk 00:01:28]} Rfd8 {[%emt 00:00:11] [%clk 00:01:43]} 16. Rfd1
{[%clk 00:01:29]} a5 {[%emt 00:00:14] [%clk 00:01:30]} 17. b3 {[%emt 00:00:26]
[%clk 00:01:06]} dxe4 {[%emt 00:00:27] [%clk 00:01:04]} 18. Nxe4 {[%emt
00:00:01] [%clk 00:01:06]} Nd5 {[%emt 00:00:02] [%clk 00:01:05]} 19. Bc4 {[%emt
00:00:14] [%clk 00:00:54]} f5 {[%emt 00:00:19] [%clk 00:00:48]} 20. Ng3 {[%emt
00:00:14] [%clk 00:00:42]} e4 {[%emt 00:00:01] [%clk 00:00:49]} 21. Nh4 {[%emt
00:00:04] [%clk 00:00:40]} Nce7 {[%emt 00:00:11] [%clk 00:00:41]} 22. Bxd5
{[%emt 00:00:04] [%clk 00:00:37]} Rxd5 {[%emt 00:00:23] [%clk 00:00:20]} 23.
Rxd5 {[%emt 00:00:06] [%clk 00:00:33]} Nxd5 {[%emt 00:00:03] [%clk 00:00:20]}
24. Nhxf5 {[%emt 00:00:01] [%clk 00:00:33]} Nxc3 {[%emt 00:00:14] [%clk
00:00:08]} 25. Qb2 {[%clk 00:00:35]} Bxf5 {[%emt 00:00:02] [%clk 00:00:08]} 26.
Nxf5 {[%clk 00:00:36]} Qf6 {[%emt 00:00:05] [%clk 00:00:05]} 27. Kf1 {[%emt
00:00:21] [%clk 00:00:17]} Qxf5 {[%emt 00:00:01] [%clk 00:00:06]} 28. Rxc3
{[%emt 00:00:01] [%clk 00:00:17]} Qb5+ {[%emt 00:00:01] [%clk 00:00:07]} 29. Kg1
{[%emt 00:00:05] [%clk 00:00:15]} Rxc3 {[%emt 00:00:04] [%clk 00:00:04]} 30.
Qxc3 {[%emt 00:00:01] [%clk 00:00:16]} Qe2 {[%clk 00:00:06]} 31. Qc8+ {[%emt
00:00:09] [%clk 00:00:08]} Kh7 {[%emt 00:00:02] [%clk 00:00:07]} 32. Qf5+ {[%emt
00:00:01] [%clk 00:00:09]} Kh8 {[%emt 00:00:01] [%clk 00:00:07]} 33. Qf8+ {[%emt
00:00:01] [%clk 00:00:09]} Kh7 {[%clk 00:00:09]} 34. Qf5+ {[%clk 00:00:11]} Kg8
{[%emt 00:00:01] [%clk 00:00:10]} 35. Qc8+ {[%emt 00:00:02] [%clk 00:00:10]} Kh7
{[%emt 00:00:04] [%clk 00:00:09]} 36. Qf5+ {[%emt 00:00:01] [%clk 00:00:11]}
1/2-1/2

[Site "Europe Echecs"]

[Event "Championnat d'Europe de Blitz"]
[Date "2024.12.09"]
[White "Paichadze, Luka"]
[Black "Horvath, Dominik"]
[WhiteElo "2532"]
[BlackElo "2542"]
[Round "6.23"]
[Result "1-0"]
[TimeControl "180+2"]

1. e4 {[%emt 00:00:01] [%clk 00:03:01]} d5 {[%emt 00:00:04] [%clk 00:03:01]} 2.
exd5 {[%emt 00:00:02] [%clk 00:03:01]} Qxd5 {[%clk 00:03:02]} 3. Nc3 {[%emt
00:00:01] [%clk 00:03:02]} Qa5 {[%emt 00:00:02] [%clk 00:03:02]} 4. g3 {[%emt
00:00:04] [%clk 00:03:00]} h5 {[%emt 00:00:19] [%clk 00:02:45]} 5. Bg2 {[%emt
00:00:03] [%clk 00:02:59]} h4 {[%emt 00:00:03] [%clk 00:02:44]} 6. d4 {[%emt
00:00:02] [%clk 00:02:59]} h3 {[%emt 00:00:05] [%clk 00:02:42]} 7. Bf3 {[%emt
00:00:01] [%clk 00:02:59]} Nf6 {[%emt 00:00:05] [%clk 00:02:39]} 8. Bf4 {[%emt
00:00:16] [%clk 00:02:45]} c6 {[%emt 00:00:02] [%clk 00:02:39]} 9. Qd2 {[%emt
00:00:03] [%clk 00:02:44]} Bf5 {[%emt 00:00:05] [%clk 00:02:35]} 10. O-O-O
{[%emt 00:00:07] [%clk 00:02:40]} e6 {[%emt 00:00:01] [%clk 00:02:36]} 11. Nge2
{[%emt 00:00:26] [%clk 00:02:15]} Nbd7 {[%emt 00:00:02] [%clk 00:02:37]} 12. Kb1
{[%emt 00:00:09] [%clk 00:02:08]} Nb6 {[%emt 00:00:44] [%clk 00:01:54]} 13. Nd5
{[%emt 00:00:13] [%clk 00:02:00]} Qxd2 {[%emt 00:00:01] [%clk 00:01:53]} 14.
Nxf6+ {[%emt 00:00:08] [%clk 00:01:54]} gxf6 {[%emt 00:00:01] [%clk 00:01:54]}
15. Bxd2 {[%emt 00:00:09] [%clk 00:01:47]} O-O-O {[%emt 00:00:05] [%clk
00:01:51]} 16. b3 {[%emt 00:00:09] [%clk 00:01:41]} e5 {[%emt 00:00:08] [%clk
00:01:44]} 17. dxe5 {[%emt 00:00:07] [%clk 00:01:36]} fxe5 {[%emt 00:00:01]
[%clk 00:01:45]} 18. Bg5 {[%emt 00:00:03] [%clk 00:01:35]} Rxd1+ {[%emt
00:00:13] [%clk 00:01:34]} 19. Rxd1 {[%emt 00:00:01] [%clk 00:01:36]} Bc5 {[%clk
00:01:35]} 20. Nc3 {[%emt 00:00:18] [%clk 00:01:20]} Rg8 {[%emt 00:00:32] [%clk
00:01:06]} 21. Bf6 {[%emt 00:00:11] [%clk 00:01:10]} Nd7 {[%emt 00:00:03] [%clk
00:01:06]} 22. Bh4 {[%emt 00:00:03] [%clk 00:01:09]} Bxf2 {[%emt 00:00:25] [%clk
00:00:43]} 23. Ne4 {[%emt 00:00:01] [%clk 00:01:10]} Bxe4 {[%emt 00:00:02] [%clk
00:00:42]} 24. Bxe4 {[%emt 00:00:02] [%clk 00:01:11]} Bd4 {[%emt 00:00:10] [%clk
00:00:34]} 25. Bf5 {[%emt 00:00:01] [%clk 00:01:11]} Kc7 {[%emt 00:00:03] [%clk
00:00:33]} 26. c3 {[%emt 00:00:03] [%clk 00:01:10]} Bxc3 {[%emt 00:00:07] [%clk
00:00:28]} 27. Rxd7+ {[%emt 00:00:02] [%clk 00:01:10]} Kb6 {[%clk 00:00:30]} 28.
Rd8 {[%emt 00:00:06] [%clk 00:01:06]} Rg7 {[%emt 00:00:07] [%clk 00:00:24]} 29.
Bf6 {[%emt 00:00:03]} 1-0

[Site "Europe Echecs"]

[Event "Championnat d'Europe de Blitz"]
[Date "2024.12.09"]
[White "Upleger, Martin"]
[Black "Bernadskiy, Vitaliy"]
[WhiteElo "2297"]
[BlackElo "2546"]
[Round "6.24"]
[Result "1/2-1/2"]
[TimeControl "180+2"]

1. d4 {[%emt 00:00:01] [%clk 00:03:02]} Nf6 {[%emt 00:00:02] [%clk 00:03:03]} 2.
Nf3 {[%clk 00:03:03]} g6 {[%emt 00:00:02] [%clk 00:03:03]} 3. Bg5 {[%clk
00:03:03]} Bg7 {[%emt 00:00:02] [%clk 00:03:04]} 4. Nbd2 {[%clk 00:03:04]} O-O
{[%emt 00:00:02] [%clk 00:03:04]} 5. c3 {[%emt 00:00:01] [%clk 00:03:05]} d6
{[%emt 00:00:02] [%clk 00:03:04]} 6. e4 {[%emt 00:00:01] [%clk 00:03:06]} h6
{[%emt 00:00:04] [%clk 00:03:02]} 7. Bh4 {[%clk 00:03:07]} c5 {[%emt 00:00:02]
[%clk 00:03:03]} 8. dxc5 {[%emt 00:00:02] [%clk 00:03:07]} dxc5 {[%emt 00:00:01]
[%clk 00:03:03]} 9. Bc4 {[%emt 00:00:01] [%clk 00:03:08]} Nc6 {[%emt 00:00:03]
[%clk 00:03:03]} 10. Qe2 {[%emt 00:00:01] [%clk 00:03:08]} Nh5 {[%emt 00:00:33]
[%clk 00:02:31]} 11. Qe3 {[%emt 00:00:05] [%clk 00:03:06]} b6 {[%emt 00:00:09]
[%clk 00:02:24]} 12. O-O {[%emt 00:00:03] [%clk 00:03:05]} Qc7 {[%emt 00:00:02]
[%clk 00:02:24]} 13. Bg3 {[%emt 00:00:07] [%clk 00:02:59]} Nxg3 {[%emt 00:00:02]
[%clk 00:02:24]} 14. hxg3 {[%emt 00:00:01] [%clk 00:03:00]} Bb7 {[%emt 00:00:11]
[%clk 00:02:16]} 15. Rfe1 {[%emt 00:00:03] [%clk 00:03:00]} Rad8 {[%emt
00:00:12] [%clk 00:02:06]} 16. Bf1 {[%emt 00:00:18] [%clk 00:02:43]} e6 {[%emt
00:00:06] [%clk 00:02:02]} 17. a4 {[%emt 00:00:12]} Na5 {[%clk 00:01:53]} 18.
Nc4 {[%emt 00:00:02] [%clk 00:02:44]} Nxc4 {[%emt 00:00:12] [%clk 00:01:42]} 19.
Bxc4 {[%emt 00:00:01] [%clk 00:02:45]} Bc6 {[%emt 00:00:02] [%clk 00:01:43]} 20.
Qe2 {[%emt 00:00:11] [%clk 00:02:35]} Rd7 {[%emt 00:00:07] [%clk 00:01:37]} 21.
Bb5 {[%emt 00:00:37] [%clk 00:02:01]} Rfd8 {[%emt 00:00:01] [%clk 00:01:38]} 22.
a5 {[%emt 00:00:13] [%clk 00:01:50]} Rb8 {[%emt 00:00:36] [%clk 00:01:05]} 23.
axb6 {[%emt 00:00:06] [%clk 00:01:46]} axb6 {[%emt 00:00:02] [%clk 00:01:04]}
24. Red1 {[%emt 00:00:52] [%clk 00:00:56]} Rbd8 {[%emt 00:00:04] [%clk
00:01:02]} 25. Rxd7 {[%emt 00:00:02] [%clk 00:00:56]} Qxd7 {[%emt 00:00:02]
[%clk 00:01:01]} 26. Bxc6 {[%emt 00:00:03] [%clk 00:00:56]} Qxc6 {[%clk
00:01:01]} 27. Ra6 {[%emt 00:00:05] [%clk 00:00:53]} c4 {[%emt 00:00:05] [%clk
00:00:59]} 28. Qe3 {[%emt 00:00:07] [%clk 00:00:47]} Rb8 {[%emt 00:00:24] [%clk
00:00:38]} 29. Ra7 {[%emt 00:00:05] [%clk 00:00:43]} g5 {[%emt 00:00:11] [%clk
00:00:29]} 30. g4 {[%emt 00:00:03] [%clk 00:00:42]} Rd8 {[%emt 00:00:02] [%clk
00:00:30]} 31. g3 {[%emt 00:00:06] [%clk 00:00:38]} Rd3 {[%emt 00:00:02] [%clk
00:00:30]} 32. Qe2 {[%emt 00:00:03] [%clk 00:00:37]} Qd6 {[%emt 00:00:05] [%clk
00:00:27]} 33. Kg2 {[%emt 00:00:03] [%clk 00:00:36]} b5 {[%emt 00:00:05] [%clk
00:00:24]} 34. Rb7 {[%emt 00:00:03] [%clk 00:00:34]} Qc6 {[%emt 00:00:01] [%clk
00:00:25]} 35. Rb8+ {[%emt 00:00:04] [%clk 00:00:33]} Kh7 {[%clk 00:00:26]} 36.
Ne1 {[%emt 00:00:09] [%clk 00:00:26]} Rd7 {[%emt 00:00:03] [%clk 00:00:24]} 37.
Nf3 {[%emt 00:00:01] [%clk 00:00:27]} Bf6 {[%emt 00:00:13] [%clk 00:00:14]} 38.
Qc2 {[%emt 00:00:09] [%clk 00:00:19]} Kg7 {[%emt 00:00:02] [%clk 00:00:14]} 39.
Qe2 {[%emt 00:00:02] [%clk 00:00:20]} Rd3 {[%emt 00:00:02] [%clk 00:00:14]} 40.
Ne1 {[%emt 00:00:02] [%clk 00:00:20]} Rd7 {[%emt 00:00:04] [%clk 00:00:11]} 41.
Nf3 {[%emt 00:00:01] [%clk 00:00:21]} Rd3 {[%emt 00:00:07] [%clk 00:00:06]} 42.
Ne1 {[%emt 00:00:01] [%clk 00:00:22]} Rd7 {[%emt 00:00:03] [%clk 00:00:06]} 43.
Nf3 {[%clk 00:00:23]} Kh7 {[%emt 00:00:03] [%clk 00:00:05]} 44. Qc2 {[%emt
00:00:03] [%clk 00:00:22]} Kg7 {[%emt 00:00:02] [%clk 00:00:05]} 45. Qe2 {[%clk
00:00:23]} Re7 {[%emt 00:00:03] [%clk 00:00:03]} 46. Qe3 {[%emt 00:00:04] [%clk
00:00:21]} Rd7 {[%emt 00:00:02] [%clk 00:00:03]} 47. Qe2 {[%emt 00:00:04]} Rd3
{[%clk 00:00:03]} 48. Ne1 {[%emt 00:00:02] [%clk 00:00:22]} Rd7 {[%emt 00:00:01]
[%clk 00:00:03]} 49. Nf3 {[%clk 00:00:23]} 1/2-1/2

[Site "Europe Echecs"]

[Event "Championnat d'Europe de Blitz"]
[Date "2024.12.09"]
[White "Ghimpu, Samuel-Timotei"]
[Black "Pancevski, Filip"]
[WhiteElo "2475"]
[BlackElo "2420"]
[Round "6.25"]
[Result "1-0"]
[TimeControl "180+2"]

1. d4 {[%emt 00:00:01] [%clk 00:03:02]} Nf6 {[%emt 00:00:01] [%clk 00:03:04]} 2.
Nf3 {[%emt 00:00:01] [%clk 00:03:03]} g6 {[%clk 00:03:05]} 3. Nbd2 {[%emt
00:00:02] [%clk 00:03:04]} Bg7 {[%emt 00:00:03] [%clk 00:03:05]} 4. e4 {[%clk
00:03:05]} d6 {[%emt 00:00:01] [%clk 00:03:05]} 5. Bb5+ {[%emt 00:00:01] [%clk
00:03:06]} Bd7 {[%emt 00:00:04] [%clk 00:03:03]} 6. a4 {[%emt 00:00:01] [%clk
00:03:07]} O-O {[%emt 00:00:02] [%clk 00:03:03]} 7. O-O {[%emt 00:00:02] [%clk
00:03:07]} a6 {[%emt 00:00:09] [%clk 00:02:57]} 8. Bd3 {[%emt 00:00:13] [%clk
00:02:55]} Nc6 {[%clk 00:02:58]} 9. Re1 {[%emt 00:00:10] [%clk 00:02:47]} e5
{[%emt 00:00:02] [%clk 00:02:58]} 10. c3 {[%emt 00:00:07] [%clk 00:02:42]} Re8
{[%clk 00:02:59]} 11. h3 {[%emt 00:00:04] [%clk 00:02:40]} Nh5 {[%emt 00:00:12]
[%clk 00:02:49]} 12. d5 {[%emt 00:00:19] [%clk 00:02:23]} Ne7 {[%emt 00:00:10]
[%clk 00:02:41]} 13. a5 {[%emt 00:00:03] [%clk 00:02:22]} Rf8 {[%emt 00:00:02]
[%clk 00:02:40]} 14. b4 {[%emt 00:00:03] [%clk 00:02:21]} Qe8 {[%emt 00:00:03]
[%clk 00:02:39]} 15. c4 {[%emt 00:00:05] [%clk 00:02:18]} f5 {[%emt 00:00:07]
[%clk 00:02:35]} 16. c5 {[%emt 00:00:07] [%clk 00:02:12]} Nf4 {[%emt 00:00:07]
[%clk 00:02:30]} 17. Bf1 {[%emt 00:00:18] [%clk 00:01:55]} dxc5 {[%emt 00:00:18]
[%clk 00:02:14]} 18. bxc5 {[%emt 00:00:05] [%clk 00:01:53]} fxe4 {[%emt
00:00:02] [%clk 00:02:14]} 19. Nxe4 {[%emt 00:00:03] [%clk 00:01:51]} Nfxd5
{[%emt 00:00:04] [%clk 00:02:13]} 20. Bc4 {[%emt 00:00:09] [%clk 00:01:44]} Bc6
{[%emt 00:00:17] [%clk 00:01:58]} 21. Bb2 {[%emt 00:00:31] [%clk 00:01:15]} Kh8
{[%emt 00:00:33] [%clk 00:01:27]} 22. Bxe5 {[%emt 00:00:05] [%clk 00:01:12]} Qf7
{[%emt 00:00:24] [%clk 00:01:05]} 23. Nfg5 {[%emt 00:00:16] [%clk 00:00:58]} Qg8
{[%emt 00:00:07] [%clk 00:00:59]} 24. Bxg7+ {[%emt 00:00:07] [%clk 00:00:54]}
Kxg7 {[%emt 00:00:27] [%clk 00:00:34]} 25. Qd4+ {[%emt 00:00:01] [%clk
00:00:55]} Kh6 {[%emt 00:00:01] [%clk 00:00:35]} 26. Nf6 {[%emt 00:00:22] [%clk
00:00:35]} Rxf6 {[%emt 00:00:11] [%clk 00:00:26]} 27. Qh4+ {[%emt 00:00:01]
[%clk 00:00:36]} Kg7 {[%clk 00:00:27]} 28. Rxe7+ {[%emt 00:00:01] [%clk
00:00:36]} Nxe7 {[%emt 00:00:02] [%clk 00:00:27]} 29. Bxg8 {[%emt 00:00:01]
[%clk 00:00:37]} h6 {[%emt 00:00:07] [%clk 00:00:23]} 30. Ne6+ {[%emt 00:00:02]
[%clk 00:00:37]} 1-0

[Site "Europe Echecs"]